[Event "Titled Tuesday Blitz March 08 Late 2022"]
[White "Paravyan, David"]
[Black "Vakhlamov, Igor L."]
[WhiteFideId "4194985"]
[BlackFideId "24126748"]
[WhiteElo "2569"]
[BlackElo "2401"]
[Result "1-0"]
[Round "10"]
[TimeControl "180+1"]
[Date "2022.03.08"]
[WhiteClock "0:01:25"]
[BlackClock "0:00:00"]

1. e4 {[%clk 0:02:58]}  c5 {[%clk 0:02:53]} 2. Nf3 {[%clk 0:02:58]}  Nc6 {[%clk 0:02:53]} 3. d4 {[%clk 0:02:59]}  cxd4 {[%clk 0:02:54]} 4. Nxd4 {[%clk 0:03:00]}  g6 {[%clk 0:02:54]} 5. c4 {[%clk 0:02:59]}  Nf6 {[%clk 0:02:53]} 6. Nc3 {[%clk 0:02:59]}  d6 {[%clk 0:02:53]} 7. f3 {[%clk 0:02:58]}  Nxd4 {[%clk 0:02:49]} 8. Qxd4 {[%clk 0:02:59]}  Bg7 {[%clk 0:02:50]} 9. Be3 {[%clk 0:02:59]}  O-O {[%clk 0:02:50]} 10. Qd2 {[%clk 0:03:00]}  Be6 {[%clk 0:02:51]} 11. Rc1 {[%clk 0:02:58]}  Qa5 {[%clk 0:02:51]} 12. b3 {[%clk 0:02:56]}  Rfc8 {[%clk 0:02:49]} 13. Be2 {[%clk 0:02:56]}  a6 {[%clk 0:02:49]} 14. Na4 {[%clk 0:02:56]}  Qxd2+ {[%clk 0:02:50]} 15. Kxd2 {[%clk 0:02:57]}  Nd7 {[%clk 0:02:50]} 16. g4 {[%clk 0:02:51]}  f5 {[%clk 0:02:50]} 17. exf5 {[%clk 0:02:48]}  gxf5 {[%clk 0:02:51]} 18. g5 {[%clk 0:02:46]}  d5 {[%clk 0:02:32]} 19. cxd5 {[%clk 0:02:44]}  Bxd5 {[%clk 0:02:33]} 20. Nc3 {[%clk 0:02:42]}  Bc6 {[%clk 0:02:06]} 21. Rhd1 {[%clk 0:02:33]}  Ne5 {[%clk 0:01:54]} 22. f4 {[%clk 0:02:28]}  Nf3+ {[%clk 0:01:54]} 23. Kc2 {[%clk 0:02:25]}  Be4+ {[%clk 0:01:37]} 24. Kb2 {[%clk 0:02:23]}  b5 {[%clk 0:01:32]} 25. a3 {[%clk 0:02:11]}  Rc6 {[%clk 0:01:11]} 26. Bxf3 {[%clk 0:02:03]}  Bxf3 {[%clk 0:01:12]} 27. Rd7 {[%clk 0:02:03]}  Rac8 {[%clk 0:00:56]} 28. Bd4 {[%clk 0:02:01]}  Bf8 {[%clk 0:00:30]} 29. Rf1 {[%clk 0:01:50]}  Bg4 {[%clk 0:00:29]} 30. Rf2 {[%clk 0:01:47]}  R6c7 {[%clk 0:00:16]} 31. Rxc7 {[%clk 0:01:46]}  Rxc7 {[%clk 0:00:17]} 32. Be5 {[%clk 0:01:45]}  Rd7 {[%clk 0:00:16]} 33. Kc2 {[%clk 0:01:45]}  Kf7 {[%clk 0:00:16]} 34. h3 {[%clk 0:01:42]}  Bh5 {[%clk 0:00:14]} 35. Rd2 {[%clk 0:01:29]}  Rxd2+ {[%clk 0:00:14]} 36. Kxd2 {[%clk 0:01:30]}  e6 {[%clk 0:00:14]} 37. b4 {[%clk 0:01:31]}  Bf3 {[%clk 0:00:14]} 38. Ke3 {[%clk 0:01:31]}  Bc6 {[%clk 0:00:13]} 39. Ne2 {[%clk 0:01:28]}  Bd5 {[%clk 0:00:12]} 40. h4 {[%clk 0:01:27]}  Kg6 {[%clk 0:00:12]} 41. Ng3 {[%clk 0:01:27]}  a5 {[%clk 0:00:11]} 42. h5+ {[%clk 0:01:26]}  Kf7 {[%clk 0:00:11]} 43. Bc3 {[%clk 0:01:25]}  a4 {[%clk 0:00:00]} 44. Nf1 {[%clk 0:01:25]} 1-0


[Site "https://www.chess.com"]

[Event "Titled Tuesday Blitz March 08 Late 2022"]
[White "Pavlidou, Ekaterini"]
[Black "Bellissimo, Joseph F."]
[WhiteFideId "4213262"]
[BlackFideId "2609843"]
[WhiteElo "2127"]
[BlackElo "2061"]
[Result "1-0"]
[Round "10"]
[TimeControl "180+1"]
[Date "2022.03.09"]
[WhiteClock "0:00:24"]
[BlackClock "0:00:15"]

1. d4 {[%clk 0:02:55]}  Nf6 {[%clk 0:02:59]} 2. c4 {[%clk 0:02:55]}  e6 {[%clk 0:02:58]} 3. Nc3 {[%clk 0:02:56]}  Bb4 {[%clk 0:02:58]} 4. a3 {[%clk 0:02:54]}  Bxc3+ {[%clk 0:02:55]} 5. bxc3 {[%clk 0:02:55]}  O-O {[%clk 0:02:53]} 6. f3 {[%clk 0:02:55]}  d6 {[%clk 0:02:53]} 7. e4 {[%clk 0:02:55]}  e5 {[%clk 0:02:54]} 8. Bd3 {[%clk 0:02:50]}  Nc6 {[%clk 0:02:50]} 9. Ne2 {[%clk 0:02:49]}  b6 {[%clk 0:02:31]} 10. O-O {[%clk 0:02:46]}  Ba6 {[%clk 0:02:30]} 11. Bg5 {[%clk 0:02:42]}  h6 {[%clk 0:02:29]} 12. Bh4 {[%clk 0:02:42]}  Na5 {[%clk 0:02:29]} 13. Ng3 {[%clk 0:02:35]}  g5 {[%clk 0:02:26]} 14. Nf5 {[%clk 0:02:34]}  gxh4 {[%clk 0:02:26]} 15. Qd2 {[%clk 0:02:33]}  Ne8 {[%clk 0:02:17]} 16. Nxh6+ {[%clk 0:02:25]}  Kh8 {[%clk 0:02:13]} 17. f4 {[%clk 0:02:19]}  Nxc4 {[%clk 0:02:02]} 18. Qe2 {[%clk 0:02:16]}  Qf6 {[%clk 0:02:00]} 19. Nf5 {[%clk 0:01:45]}  b5 {[%clk 0:01:49]} 20. fxe5 {[%clk 0:01:40]}  Qg6 {[%clk 0:01:38]} 21. a4 {[%clk 0:01:29]}  Bc8 {[%clk 0:01:14]} 22. axb5 {[%clk 0:01:26]}  Nb6 {[%clk 0:01:14]} 23. Rf4 {[%clk 0:01:21]}  Bxf5 {[%clk 0:01:00]} 24. Rxh4+ {[%clk 0:01:15]}  Qh7 {[%clk 0:00:56]} 25. Qf2 {[%clk 0:01:03]}  Qxh4 {[%clk 0:00:45]} 26. Qxh4+ {[%clk 0:01:02]}  Bh7 {[%clk 0:00:45]} 27. Qe7 {[%clk 0:00:57]}  Rg8 {[%clk 0:00:34]} 28. Rf1 {[%clk 0:00:55]}  Bg6 {[%clk 0:00:30]} 29. exd6 {[%clk 0:00:44]}  Nxd6 {[%clk 0:00:28]} 30. Qxc7 {[%clk 0:00:44]}  Rad8 {[%clk 0:00:19]} 31. e5 {[%clk 0:00:37]}  Bxd3 {[%clk 0:00:18]} 32. Rf4 {[%clk 0:00:30]}  Nf5 {[%clk 0:00:16]} 33. Qxf7 {[%clk 0:00:28]}  Rg7 {[%clk 0:00:16]} 34. Qh5+ {[%clk 0:00:26]}  Kg8 {[%clk 0:00:16]} 35. Rxf5 {[%clk 0:00:21]}  Bxf5 {[%clk 0:00:15]} 36. Qxf5 {[%clk 0:00:22]}  Nd5 {[%clk 0:00:16]} 37. Qe6+ {[%clk 0:00:22]}  Kh8 {[%clk 0:00:15]} 38. c4 {[%clk 0:00:20]}  Rxg2+ {[%clk 0:00:13]} 39. Kh1 {[%clk 0:00:18]}  Rg7 {[%clk 0:00:05]} 40. cxd5 {[%clk 0:00:17]}  Rdg8 {[%clk 0:00:05]} 41. Qh6+ {[%clk 0:00:17]}  Rh7 {[%clk 0:00:06]} 42. Qf6+ {[%clk 0:00:18]}  Rhg7 {[%clk 0:00:05]} 43. h4 {[%clk 0:00:18]}  Kh7 {[%clk 0:00:05]} 44. Qf5+ {[%clk 0:00:18]}  Kh6 {[%clk 0:00:06]} 45. Qf4+ {[%clk 0:00:19]}  Kh5 {[%clk 0:00:06]} 46. Kh2 {[%clk 0:00:17]}  Rg4 {[%clk 0:00:06]} 47. Qf7+ {[%clk 0:00:16]}  Kxh4 {[%clk 0:00:06]} 48. Qh7+ {[%clk 0:00:16]}  Kg5 {[%clk 0:00:07]} 49. Qxg8+ {[%clk 0:00:17]}  Kf4 {[%clk 0:00:08]} 50. Qxg4+ {[%clk 0:00:17]}  Kxg4 {[%clk 0:00:08]} 51. e6 {[%clk 0:00:18]}  Kf5 {[%clk 0:00:09]} 52. e7 {[%clk 0:00:18]}  Ke4 {[%clk 0:00:10]} 53. e8=Q+ {[%clk 0:00:19]}  Kxd4 {[%clk 0:00:11]} 54. Qc6 {[%clk 0:00:19]}  Ke5 {[%clk 0:00:11]} 55. d6 {[%clk 0:00:20]}  Ke6 {[%clk 0:00:12]} 56. d7+ {[%clk 0:00:21]}  Ke7 {[%clk 0:00:13]} 57. d8=Q+ {[%clk 0:00:21]}  Kxd8 {[%clk 0:00:13]} 58. Kg3 {[%clk 0:00:21]}  Ke7 {[%clk 0:00:13]} 59. Kf4 {[%clk 0:00:22]}  Kd8 {[%clk 0:00:13]} 60. Kf5 {[%clk 0:00:23]}  Ke7 {[%clk 0:00:14]} 61. Qb7+ {[%clk 0:00:23]}  Kd6 {[%clk 0:00:14]} 62. Qxa7 {[%clk 0:00:23]}  Kd5 {[%clk 0:00:14]} 63. Kf6 {[%clk 0:00:23]}  Kc4 {[%clk 0:00:14]} 64. Qc7+ {[%clk 0:00:24]}  Kxb5 {[%clk 0:00:15]} 65. Ke5 {[%clk 0:00:24]}  Ka6 {[%clk 0:00:15]} 66. Kd5 {[%clk 0:00:24]}  Kb5 {[%clk 0:00:15]} 67. Qb8+ {[%clk 0:00:24]}  Ka6 {[%clk 0:00:15]} 68. Kc4 {[%clk 0:00:24]}  Ka5 {[%clk 0:00:15]} 69. Qb5# {[%clk 0:00:24]} 1-0


[Site "https://www.chess.com"]

[Event "Titled Tuesday Blitz March 08 Late 2022"]
[White "Pichot, Alan"]
[Black "Goltseva, Ekaterina"]
[WhiteFideId "110973"]
[BlackFideId "24173770"]
[WhiteElo "2579"]
[BlackElo "2140"]
[Result "1-0"]
[Round "10"]
[TimeControl "180+1"]
[Date "2022.03.08"]
[WhiteClock "0:00:52"]
[BlackClock "0:00:02"]

1. c4 {[%clk 0:03:00]}  Nf6 {[%clk 0:02:59]} 2. Nc3 {[%clk 0:02:59]}  e6 {[%clk 0:03:00]} 3. e4 {[%clk 0:02:58]}  e5 {[%clk 0:03:00]} 4. Nf3 {[%clk 0:02:58]}  Nc6 {[%clk 0:03:01]} 5. a3 {[%clk 0:02:55]}  Bc5 {[%clk 0:02:56]} 6. b4 {[%clk 0:02:52]}  Bd4 {[%clk 0:02:56]} 7. Qc2 {[%clk 0:02:45]}  d6 {[%clk 0:02:44]} 8. Be2 {[%clk 0:02:40]}  Bxc3 {[%clk 0:02:42]} 9. dxc3 {[%clk 0:02:38]}  h6 {[%clk 0:02:42]} 10. O-O {[%clk 0:02:36]}  O-O {[%clk 0:02:42]} 11. Re1 {[%clk 0:02:35]}  Ne7 {[%clk 0:02:37]} 12. h3 {[%clk 0:02:30]}  Ng6 {[%clk 0:02:36]} 13. Be3 {[%clk 0:02:30]}  Qe7 {[%clk 0:02:33]} 14. Rad1 {[%clk 0:02:27]}  b6 {[%clk 0:02:29]} 15. c5 {[%clk 0:02:20]}  dxc5 {[%clk 0:02:24]} 16. bxc5 {[%clk 0:02:15]}  Bb7 {[%clk 0:02:19]} 17. Nd2 {[%clk 0:02:09]}  Rfd8 {[%clk 0:02:07]} 18. Bf1 {[%clk 0:02:05]}  Nh5 {[%clk 0:02:01]} 19. a4 {[%clk 0:02:02]}  Bc6 {[%clk 0:01:55]} 20. a5 {[%clk 0:01:56]}  bxa5 {[%clk 0:01:41]} 21. Nc4 {[%clk 0:01:54]}  Nf6 {[%clk 0:01:08]} 22. f3 {[%clk 0:01:51]}  Bb5 {[%clk 0:01:06]} 23. Nxa5 {[%clk 0:01:49]}  Bxf1 {[%clk 0:01:04]} 24. Nc6 {[%clk 0:01:38]}  Qe8 {[%clk 0:00:40]} 25. Rxd8 {[%clk 0:01:33]}  Rxd8 {[%clk 0:00:38]} 26. Nxd8 {[%clk 0:01:33]}  Ba6 {[%clk 0:00:35]} 27. Rd1 {[%clk 0:01:27]}  Nd7 {[%clk 0:00:21]} 28. Qa4 {[%clk 0:01:18]}  Bc8 {[%clk 0:00:16]} 29. Qxa7 {[%clk 0:01:11]}  Qxd8 {[%clk 0:00:16]} 30. c6 {[%clk 0:01:11]}  Kh7 {[%clk 0:00:09]} 31. cxd7 {[%clk 0:01:10]}  Bxd7 {[%clk 0:00:09]} 32. Qa4 {[%clk 0:01:07]}  Nf8 {[%clk 0:00:03]} 33. Qc4 {[%clk 0:01:02]}  Qe8 {[%clk 0:00:03]} 34. Qxc7 {[%clk 0:01:02]}  Be6 {[%clk 0:00:03]} 35. Qxe5 {[%clk 0:01:01]}  Nd7 {[%clk 0:00:03]} 36. Qd4 {[%clk 0:01:00]}  Qe7 {[%clk 0:00:04]} 37. c4 {[%clk 0:01:00]}  Nf6 {[%clk 0:00:04]} 38. c5 {[%clk 0:00:59]}  Qc7 {[%clk 0:00:05]} 39. Qd6 {[%clk 0:00:59]}  Qb7 {[%clk 0:00:04]} 40. Bd4 {[%clk 0:00:58]}  Nh5 {[%clk 0:00:03]} 41. c6 {[%clk 0:00:58]}  Qb3 {[%clk 0:00:04]} 42. Bf2 {[%clk 0:00:53]}  Bxh3 {[%clk 0:00:03]} 43. gxh3 {[%clk 0:00:53]}  Qxf3 {[%clk 0:00:04]} 44. Qd3 {[%clk 0:00:51]}  Qf6 {[%clk 0:00:02]} 45. e5+ {[%clk 0:00:51]}  Qg6+ {[%clk 0:00:01]} 46. Qxg6+ {[%clk 0:00:51]}  Kxg6 {[%clk 0:00:02]} 47. c7 {[%clk 0:00:52]} 1-0


[Site "https://www.chess.com"]

[Event "Titled Tuesday Blitz March 08 Late 2022"]
[White "Piesik, Piotr"]
[Black "Rorrer, Grayson"]
[WhiteFideId "1136194"]
[BlackFideId "30944996"]
[WhiteElo "2190"]
[BlackElo "2122"]
[Result "0-1"]
[Round "10"]
[TimeControl "180+1"]
[Date "2022.03.08"]
[WhiteClock "0:00:13"]
[BlackClock "0:00:24"]

1. Nf3 {[%clk 0:02:34]}  Nf6 {[%clk 0:02:56]} 2. g3 {[%clk 0:02:34]}  d5 {[%clk 0:02:56]} 3. Bg2 {[%clk 0:02:35]}  c6 {[%clk 0:02:56]} 4. O-O {[%clk 0:02:35]}  Bg4 {[%clk 0:02:57]} 5. d3 {[%clk 0:02:35]}  e6 {[%clk 0:02:56]} 6. Nbd2 {[%clk 0:02:36]}  Be7 {[%clk 0:02:56]} 7. e4 {[%clk 0:02:36]}  O-O {[%clk 0:02:57]} 8. h3 {[%clk 0:02:36]}  Bh5 {[%clk 0:02:58]} 9. Qe2 {[%clk 0:02:35]}  a5 {[%clk 0:02:57]} 10. a4 {[%clk 0:02:35]}  Re8 {[%clk 0:02:56]} 11. Nb3 {[%clk 0:02:33]}  Na6 {[%clk 0:02:52]} 12. Bg5 {[%clk 0:02:29]}  h6 {[%clk 0:02:47]} 13. Bf4 {[%clk 0:02:28]}  c5 {[%clk 0:02:39]} 14. Nbd2 {[%clk 0:02:24]}  Nb4 {[%clk 0:02:22]} 15. Rac1 {[%clk 0:02:24]}  Nc6 {[%clk 0:02:16]} 16. g4 {[%clk 0:02:24]}  Bg6 {[%clk 0:02:16]} 17. Ne5 {[%clk 0:02:23]}  Nxe5 {[%clk 0:01:55]} 18. Bxe5 {[%clk 0:02:24]}  d4 {[%clk 0:01:53]} 19. Nc4 {[%clk 0:02:18]}  Nd7 {[%clk 0:01:52]} 20. Bg3 {[%clk 0:02:17]}  Nb6 {[%clk 0:01:52]} 21. Ne5 {[%clk 0:02:12]}  Bh7 {[%clk 0:01:52]} 22. b3 {[%clk 0:02:12]}  Bd6 {[%clk 0:01:52]} 23. f4 {[%clk 0:01:55]}  Qc7 {[%clk 0:01:51]} 24. h4 {[%clk 0:01:48]}  Nd7 {[%clk 0:01:42]} 25. Nxd7 {[%clk 0:01:47]}  Qxd7 {[%clk 0:01:43]} 26. e5 {[%clk 0:01:48]}  Bf8 {[%clk 0:01:42]} 27. h5 {[%clk 0:01:43]}  Rab8 {[%clk 0:01:39]} 28. Ra1 {[%clk 0:01:43]}  Kh8 {[%clk 0:01:37]} 29. g5 {[%clk 0:01:39]}  Bf5 {[%clk 0:01:29]} 30. Kh2 {[%clk 0:01:38]}  Be7 {[%clk 0:01:28]} 31. gxh6 {[%clk 0:01:33]}  gxh6 {[%clk 0:01:28]} 32. Be4 {[%clk 0:01:30]}  Bxe4 {[%clk 0:01:23]} 33. Qxe4 {[%clk 0:01:30]}  Rg8 {[%clk 0:01:22]} 34. Rg1 {[%clk 0:01:28]}  Rg7 {[%clk 0:01:19]} 35. Bf2 {[%clk 0:01:26]}  Rbg8 {[%clk 0:01:19]} 36. Rxg7 {[%clk 0:01:22]}  Rxg7 {[%clk 0:01:20]} 37. Rg1 {[%clk 0:01:21]}  Rxg1 {[%clk 0:01:20]} 38. Kxg1 {[%clk 0:01:22]}  Kg7 {[%clk 0:01:15]} 39. Qg2+ {[%clk 0:01:18]}  Kh8 {[%clk 0:01:14]} 40. Qg4 {[%clk 0:01:14]}  Qd8 {[%clk 0:01:12]} 41. Kg2 {[%clk 0:01:11]}  b6 {[%clk 0:01:05]} 42. Qf3 {[%clk 0:01:08]}  Bh4 {[%clk 0:00:45]} 43. Bg1 {[%clk 0:01:05]}  Be1 {[%clk 0:00:39]} 44. Kf1 {[%clk 0:01:00]}  Bd2 {[%clk 0:00:37]} 45. Ke2 {[%clk 0:00:57]}  Bc1 {[%clk 0:00:36]} 46. Bf2 {[%clk 0:00:52]}  f5 {[%clk 0:00:30]} 47. exf6 {[%clk 0:00:44]}  Qxf6 {[%clk 0:00:30]} 48. Bg3 {[%clk 0:00:42]}  Kg7 {[%clk 0:00:27]} 49. Qb7+ {[%clk 0:00:37]}  Kh8 {[%clk 0:00:23]} 50. Qxb6 {[%clk 0:00:31]}  Bxf4 {[%clk 0:00:21]} 51. Bxf4 {[%clk 0:00:31]}  Qxf4 {[%clk 0:00:22]} 52. Qxe6 {[%clk 0:00:30]}  Qh2+ {[%clk 0:00:20]} 53. Kf1 {[%clk 0:00:20]}  Qh1+ {[%clk 0:00:18]} 54. Kf2 {[%clk 0:00:20]}  Qh2+ {[%clk 0:00:19]} 55. Kf1 {[%clk 0:00:20]}  Qh1+ {[%clk 0:00:19]} 56. Kf2 {[%clk 0:00:20]}  Qh4+ {[%clk 0:00:19]} 57. Kg2 {[%clk 0:00:19]}  Qg5+ {[%clk 0:00:19]} 58. Kf1 {[%clk 0:00:16]}  Qxh5 {[%clk 0:00:19]} 59. Qc8+ {[%clk 0:00:12]}  Kg7 {[%clk 0:00:19]} 60. Qc7+ {[%clk 0:00:12]}  Qf7+ {[%clk 0:00:19]} 61. Qxf7+ {[%clk 0:00:11]}  Kxf7 {[%clk 0:00:20]} 62. Kf2 {[%clk 0:00:10]}  Ke6 {[%clk 0:00:21]} 63. Kg3 {[%clk 0:00:11]}  Kf5 {[%clk 0:00:21]} 64. Kh4 {[%clk 0:00:11]}  Kf4 {[%clk 0:00:22]} 65. Kh5 {[%clk 0:00:11]}  Ke3 {[%clk 0:00:22]} 66. Kxh6 {[%clk 0:00:12]}  Kd2 {[%clk 0:00:23]} 67. Kg5 {[%clk 0:00:13]}  Kxc2 {[%clk 0:00:24]} 68. Kf4 {[%clk 0:00:13]}  Kxd3 {[%clk 0:00:24]} 0-1


[Site "https://www.chess.com"]

[Event "Titled Tuesday Blitz March 08 Late 2022"]
[White "Rastbod, Ali"]
[Black "Rostovtsev, Dmitry"]
[WhiteFideId "12567477"]
[BlackFideId "34278320"]
[WhiteElo "2200"]
[BlackElo "2359"]
[Result "1-0"]
[Round "10"]
[TimeControl "180+1"]
[Date "2022.03.08"]
[WhiteClock "0:00:06"]
[BlackClock "0:00:45"]

1. c4 {[%clk 0:02:55]}  Nf6 {[%clk 0:02:58]} 2. Nc3 {[%clk 0:02:55]}  g6 {[%clk 0:02:53]} 3. g3 {[%clk 0:02:55]}  Bg7 {[%clk 0:02:51]} 4. Bg2 {[%clk 0:02:56]}  O-O {[%clk 0:02:49]} 5. Nf3 {[%clk 0:02:56]}  d6 {[%clk 0:02:49]} 6. d4 {[%clk 0:02:55]}  Nc6 {[%clk 0:02:38]} 7. O-O {[%clk 0:02:55]}  e5 {[%clk 0:02:37]} 8. dxe5 {[%clk 0:02:55]}  dxe5 {[%clk 0:02:38]} 9. Bg5 {[%clk 0:02:56]}  h6 {[%clk 0:02:38]} 10. Qxd8 {[%clk 0:02:50]}  Rxd8 {[%clk 0:02:36]} 11. Bxf6 {[%clk 0:02:44]}  Bxf6 {[%clk 0:02:37]} 12. Nd5 {[%clk 0:02:45]}  Kg7 {[%clk 0:02:37]} 13. Nxc7 {[%clk 0:02:43]}  Rb8 {[%clk 0:02:35]} 14. Rfd1 {[%clk 0:02:35]}  e4 {[%clk 0:02:33]} 15. Nd2 {[%clk 0:02:35]}  e3 {[%clk 0:02:33]} 16. fxe3 {[%clk 0:02:35]}  Bxb2 {[%clk 0:02:32]} 17. Rab1 {[%clk 0:02:35]}  Be5 {[%clk 0:02:31]} 18. Nd5 {[%clk 0:02:18]}  Be6 {[%clk 0:02:21]} 19. Ne4 {[%clk 0:02:17]}  b6 {[%clk 0:02:16]} 20. Nf2 {[%clk 0:02:09]}  Rbc8 {[%clk 0:02:14]} 21. Nd3 {[%clk 0:02:06]}  Bd6 {[%clk 0:02:13]} 22. Rdc1 {[%clk 0:01:59]}  Na5 {[%clk 0:02:13]} 23. c5 {[%clk 0:01:53]}  bxc5 {[%clk 0:02:11]} 24. e4 {[%clk 0:01:51]}  c4 {[%clk 0:02:11]} 25. N3b4 {[%clk 0:01:50]}  Bc5+ {[%clk 0:02:10]} 26. Kh1 {[%clk 0:01:48]}  Bg4 {[%clk 0:02:10]} 27. Bf3 {[%clk 0:01:45]}  Be6 {[%clk 0:02:10]} 28. Na6 {[%clk 0:01:37]}  Bd4 {[%clk 0:02:07]} 29. Rb5 {[%clk 0:01:37]}  Nc6 {[%clk 0:02:06]} 30. Rxc4 {[%clk 0:01:33]}  Be5 {[%clk 0:02:06]} 31. Rbc5 {[%clk 0:01:19]}  Nd4 {[%clk 0:01:59]} 32. Rxc8 {[%clk 0:01:19]}  Bxc8 {[%clk 0:01:59]} 33. Nab4 {[%clk 0:01:14]}  Be6 {[%clk 0:01:53]} 34. Nc6 {[%clk 0:01:04]}  Nxc6 {[%clk 0:01:51]} 35. Rxc6 {[%clk 0:01:05]}  Rb8 {[%clk 0:01:48]} 36. Kg2 {[%clk 0:01:03]}  Rb2 {[%clk 0:01:44]} 37. Ra6 {[%clk 0:01:03]}  Bd4 {[%clk 0:01:44]} 38. a4 {[%clk 0:00:55]}  h5 {[%clk 0:01:39]} 39. Nf4 {[%clk 0:00:39]}  Bc4 {[%clk 0:01:38]} 40. Rc6 {[%clk 0:00:39]}  Bb3 {[%clk 0:01:35]} 41. a5 {[%clk 0:00:37]}  Ra2 {[%clk 0:01:33]} 42. a6 {[%clk 0:00:34]}  Ba4 {[%clk 0:01:21]} 43. Rc7 {[%clk 0:00:32]}  Bb3 {[%clk 0:01:15]} 44. Rc6 {[%clk 0:00:23]}  Rc2 {[%clk 0:01:10]} 45. Rd6 {[%clk 0:00:15]}  Bb6 {[%clk 0:01:03]} 46. e5 {[%clk 0:00:11]}  Bc5 {[%clk 0:00:54]} 47. Rd7 {[%clk 0:00:10]}  Kf8 {[%clk 0:00:48]} 48. e6 {[%clk 0:00:10]}  fxe6 {[%clk 0:00:48]} 49. Nxg6+ {[%clk 0:00:10]}  Ke8 {[%clk 0:00:49]} 50. Rb7 {[%clk 0:00:08]}  Kd8 {[%clk 0:00:47]} 51. Rxb3 {[%clk 0:00:07]}  Bb6 {[%clk 0:00:45]} 52. Rxb6 {[%clk 0:00:06]} 1-0


[Site "https://www.chess.com"]

[Event "Titled Tuesday Blitz March 08 Late 2022"]
[White "Risteski, Emil"]
[Black "Mirzoev, Azer"]
[WhiteFideId "15005267"]
[BlackFideId "13400304"]
[WhiteElo "2070"]
[BlackElo "2525"]
[Result "0-1"]
[Round "10"]
[TimeControl "180+1"]
[Date "2022.03.08"]
[WhiteClock "0:00:20"]
[BlackClock "0:00:14"]

1. e4 {[%clk 0:03:00]}  e6 {[%clk 0:02:58]} 2. d3 {[%clk 0:02:54]}  d5 {[%clk 0:02:57]} 3. Nd2 {[%clk 0:02:54]}  Nc6 {[%clk 0:02:56]} 4. Ngf3 {[%clk 0:02:54]}  Nf6 {[%clk 0:02:47]} 5. Be2 {[%clk 0:02:52]}  Be7 {[%clk 0:02:45]} 6. O-O {[%clk 0:02:52]}  O-O {[%clk 0:02:41]} 7. c3 {[%clk 0:02:44]}  a5 {[%clk 0:02:35]} 8. Re1 {[%clk 0:02:38]}  b6 {[%clk 0:02:30]} 9. e5 {[%clk 0:02:34]}  Nd7 {[%clk 0:02:29]} 10. d4 {[%clk 0:02:28]}  Ba6 {[%clk 0:02:29]} 11. Bxa6 {[%clk 0:02:25]}  Rxa6 {[%clk 0:02:29]} 12. Nf1 {[%clk 0:02:23]}  a4 {[%clk 0:02:28]} 13. Ng3 {[%clk 0:02:20]}  Na5 {[%clk 0:02:26]} 14. Qd2 {[%clk 0:02:11]}  c5 {[%clk 0:02:23]} 15. Qf4 {[%clk 0:02:10]}  Re8 {[%clk 0:02:15]} 16. Qg4 {[%clk 0:02:08]}  Nf8 {[%clk 0:02:13]} 17. h4 {[%clk 0:02:04]}  Nc6 {[%clk 0:02:02]} 18. h5 {[%clk 0:02:00]}  f5 {[%clk 0:01:49]} 19. exf6 {[%clk 0:01:59]}  Bxf6 {[%clk 0:01:50]} 20. h6 {[%clk 0:01:54]}  g6 {[%clk 0:01:46]} 21. Nh5 {[%clk 0:01:48]}  Bh8 {[%clk 0:01:46]} 22. Qg3 {[%clk 0:01:15]}  cxd4 {[%clk 0:01:32]} 23. Bg5 {[%clk 0:01:14]}  Qb8 {[%clk 0:01:27]} 24. Bf4 {[%clk 0:00:44]}  e5 {[%clk 0:01:21]} 25. Rxe5 {[%clk 0:00:30]}  Nxe5 {[%clk 0:01:11]} 26. Nxe5 {[%clk 0:00:23]}  Bxe5 {[%clk 0:00:55]} 27. Nf6+ {[%clk 0:00:19]}  Kf7 {[%clk 0:00:54]} 28. Bxe5 {[%clk 0:00:19]}  Qxe5 {[%clk 0:00:51]} 29. Nxe8 {[%clk 0:00:18]}  Qxg3 {[%clk 0:00:48]} 30. fxg3 {[%clk 0:00:19]}  Kxe8 {[%clk 0:00:47]} 31. cxd4 {[%clk 0:00:19]}  Ra7 {[%clk 0:00:45]} 32. Rc1 {[%clk 0:00:19]}  Kd7 {[%clk 0:00:44]} 33. Rf1 {[%clk 0:00:18]}  Ke7 {[%clk 0:00:43]} 34. Re1+ {[%clk 0:00:19]}  Ne6 {[%clk 0:00:43]} 35. Rd1 {[%clk 0:00:19]}  Rc7 {[%clk 0:00:42]} 36. Rd2 {[%clk 0:00:20]}  Rc4 {[%clk 0:00:41]} 37. Kh2 {[%clk 0:00:21]}  Rxd4 {[%clk 0:00:41]} 38. Rf2 {[%clk 0:00:22]}  Rd1 {[%clk 0:00:37]} 39. Rc2 {[%clk 0:00:22]}  d4 {[%clk 0:00:35]} 40. Rc6 {[%clk 0:00:21]}  d3 {[%clk 0:00:29]} 41. Rxb6 {[%clk 0:00:21]}  d2 {[%clk 0:00:29]} 42. Rb7+ {[%clk 0:00:22]}  Kf6 {[%clk 0:00:17]} 43. Rxh7 {[%clk 0:00:19]}  Rc1 {[%clk 0:00:15]} 44. Rd7 {[%clk 0:00:19]}  d1=Q {[%clk 0:00:15]} 45. h7 {[%clk 0:00:20]}  Qh1# {[%clk 0:00:14]} 0-1


[Site "https://www.chess.com"]

[Event "Titled Tuesday Blitz March 08 Late 2022"]
[White "Romero Ruscalleda, Josep"]
[Black "Mickiewicz, Piotr"]
[WhiteFideId "2231859"]
[BlackFideId "1114891"]
[WhiteElo "2340"]
[BlackElo "2266"]
[Result "0-1"]
[Round "10"]
[TimeControl "180+1"]
[Date "2022.03.09"]
[WhiteClock "0:00:01"]
[BlackClock "0:00:13"]

1. e4 {[%clk 0:02:56]}  c5 {[%clk 0:02:59]} 2. c3 {[%clk 0:02:56]}  e6 {[%clk 0:03:00]} 3. d4 {[%clk 0:02:56]}  d5 {[%clk 0:02:56]} 4. e5 {[%clk 0:02:56]}  Qb6 {[%clk 0:02:53]} 5. Bd3 {[%clk 0:02:55]}  Bd7 {[%clk 0:02:44]} 6. dxc5 {[%clk 0:02:53]}  Bxc5 {[%clk 0:02:43]} 7. Qe2 {[%clk 0:02:54]}  a5 {[%clk 0:02:39]} 8. Nf3 {[%clk 0:02:53]}  Nc6 {[%clk 0:02:37]} 9. O-O {[%clk 0:02:53]}  Nge7 {[%clk 0:02:35]} 10. Nbd2 {[%clk 0:02:46]}  Ng6 {[%clk 0:02:32]} 11. Nb3 {[%clk 0:02:46]}  a4 {[%clk 0:02:19]} 12. Nxc5 {[%clk 0:02:45]}  Qxc5 {[%clk 0:02:20]} 13. h4 {[%clk 0:02:42]}  h6 {[%clk 0:01:43]} 14. h5 {[%clk 0:02:21]}  Nge7 {[%clk 0:01:41]} 15. Be3 {[%clk 0:02:21]}  Qa5 {[%clk 0:01:30]} 16. Rab1 {[%clk 0:02:08]}  O-O {[%clk 0:01:26]} 17. Rfc1 {[%clk 0:01:58]}  f5 {[%clk 0:01:25]} 18. exf6 {[%clk 0:01:57]}  Rxf6 {[%clk 0:01:23]} 19. b4 {[%clk 0:01:54]}  Qc7 {[%clk 0:01:18]} 20. b5 {[%clk 0:01:44]}  Ne5 {[%clk 0:01:13]} 21. Nxe5 {[%clk 0:01:22]}  Qxe5 {[%clk 0:01:14]} 22. Bd4 {[%clk 0:01:15]}  Qxe2 {[%clk 0:01:15]} 23. Bxe2 {[%clk 0:01:15]}  Rf7 {[%clk 0:01:09]} 24. c4 {[%clk 0:01:08]}  Nf5 {[%clk 0:01:09]} 25. Be5 {[%clk 0:01:07]}  Ne7 {[%clk 0:00:44]} 26. Bf3 {[%clk 0:01:00]}  Rxf3 {[%clk 0:00:39]} 27. gxf3 {[%clk 0:00:59]}  dxc4 {[%clk 0:00:40]} 28. Rxc4 {[%clk 0:00:58]}  Nd5 {[%clk 0:00:41]} 29. b6 {[%clk 0:00:53]}  Be8 {[%clk 0:00:32]} 30. Rbc1 {[%clk 0:00:43]}  Ra6 {[%clk 0:00:28]} 31. Rc8 {[%clk 0:00:29]}  Kf7 {[%clk 0:00:27]} 32. Bd4 {[%clk 0:00:27]}  Ke7 {[%clk 0:00:25]} 33. Bxg7 {[%clk 0:00:24]}  Bxh5 {[%clk 0:00:24]} 34. Bxh6 {[%clk 0:00:21]}  Bxf3 {[%clk 0:00:23]} 35. Bg5+ {[%clk 0:00:20]}  Kf7 {[%clk 0:00:22]} 36. R8c7+ {[%clk 0:00:20]}  Kg6 {[%clk 0:00:17]} 37. Be3 {[%clk 0:00:20]}  Nxe3 {[%clk 0:00:17]} 38. fxe3 {[%clk 0:00:20]}  Rxb6 {[%clk 0:00:18]} 39. Re7 {[%clk 0:00:20]}  Bd5 {[%clk 0:00:18]} 40. Rcc7 {[%clk 0:00:19]}  Rb2 {[%clk 0:00:17]} 41. Rg7+ {[%clk 0:00:18]}  Kf5 {[%clk 0:00:18]} 42. a3 {[%clk 0:00:15]}  Ke4 {[%clk 0:00:18]} 43. Rg3 {[%clk 0:00:14]}  Rb3 {[%clk 0:00:16]} 44. Kf2 {[%clk 0:00:14]}  Rxa3 {[%clk 0:00:16]} 45. Rc1 {[%clk 0:00:13]}  Ra2+ {[%clk 0:00:16]} 46. Ke1 {[%clk 0:00:13]}  a3 {[%clk 0:00:16]} 47. Rb1 {[%clk 0:00:10]}  Rb2 {[%clk 0:00:15]} 48. Rd1 {[%clk 0:00:01]}  a2 {[%clk 0:00:14]} 49. Rd4+ {[%clk 0:00:01]}  Ke5 {[%clk 0:00:13]} 0-1


[Site "https://www.chess.com"]